bitfinex-derivatives/quotes_SOLF0:USTF0_20241002
["timestamp","ask_amount","ask_price","bid_price","bid_amount"]
[1727903350615,3.5609,140.44,140.38,3.5621]
[1727903350824,3.5609,140.44,140.36,11.07070696]
[1727903351221,3.561,140.43,140.38,3.562]
[1727903351424,3.561,140.43,140.36,11.07070696]
[1727903351613,0.12502,140.45,140.33,0.12502]
[1727903352127,7.1215,140.44,140.33,0.12502]
[1727903352423,0.12502,140.39,140.3,7.6]
[1727903352620,0.12502,140.39,140.31,3.61451894]
[1727903352832,0.12502,140.39,140.3,7.6]
[1727903353417,0.12502,140.39,140.36,3.5626]
[1727903353715,1.44182,140.39,140.34,7.6]
[1727903353919,2.87782,140.39,140.34,7.6]
[1727903354219,2.87782,140.39,140.32,7.6]
[1727903354426,3.5624,140.38,140.34,3.5631]
[1727903355116,2.87782,140.39,140.31,11.10665449]
[1727903357319,2.87782,140.39,140.35,3.5628]
[1727903357531,2.87782,140.39,140.31,11.10665449]
[1727903357924,2.87782,140.39,140.35,3.5628]
[1727903358230,2.87782,140.39,140.31,11.10665449]
[1727903358639,2.87782,140.39,140.32,7.126]
[1727903358935,2.87782,140.39,140.31,11.10665449]
[1727903359135,2.87782,140.39,140.34,3.5631]
[1727903360223,2.87782,140.39,140.31,11.10665449]
[1727903360828,2.87782,140.39,140.33,3.5634]
[1727903361126,2.87782,140.39,140.31,11.10665449]
[1727903361427,2.87782,140.39,140.32,7.126]
[1727903362534,2.87782,140.39,140.37,3.5625]
[1727903362929,2.87782,140.39,140.36,7.6]
[1727903363126,2.87782,140.39,140.36,11.1627]
[1727903363436,2.87782,140.39,140.36,7.6]
[1727903365124,2.87782,140.39,140.38,3.5622]
[1727903365835,0.12502,140.39,140.38,3.5622]
[1727903366030,0.12502,140.39,140.36,7.6]
[1727903367140,5.61,140.38,140.36,3.5627]
[1727903367344,5.61,140.38,140.34,7.58]
[1727903367638,5.61,140.38,140.32,7.58]
[1727903367836,1.4335,140.37,140.32,3.5637]
[1727903368031,1.4335,140.37,140.32,11.1437]
[1727903368233,2.7605,140.36,140.32,11.1437]
[1727903368734,2.7605,140.36,140.32,7.58]
[1727903369043,2.7605,140.36,140.33,3.5635]
[1727903369735,2.7605,140.36,140.34,3.5633]
[1727903370139,2.7605,140.36,140.33,3.5633]
[1727903371635,2.7605,140.36,140.25,94.42621863]
[1727903371836,2.7605,140.36,140.28,7.58]
[1727903372039,2.7605,140.36,140.25,94.42621863]
[1727903372040,3.5638,140.32,140.27,3.68982]
[1727903372233,2.7605,140.36,140.27,11.26982]
[1727903372445,5.7,140.31,140.27,11.26982]
[1727903372735,5.7,140.31,140.24,7.58]
[1727903373040,5.7,140.31,140.23,84.48]
[1727903373241,5.7,140.31,140.23,7.58]
[1727903373637,3.5644,140.3,140.23,7.58]
[1727903373837,5.7,140.31,140.23,7.58]
[1727903374034,2.6933,140.29,140.23,7.58]
[1727903374430,6.2579,140.29,140.23,7.58]
[1727903374938,2.6933,140.29,140.23,7.58]
[1727903375236,2.6933,140.29,140.22,1.001]
[1727903375537,2.6933,140.29,140.22,8.581]
[1727903375930,2.6933,140.29,140.22,4.5673]
[1727903376135,2.6933,140.29,140.22,1.001]
[1727903376136,3.565,140.28,140.22,1.001]
[1727903376342,2.6933,140.29,140.22,1.001]
[1727903377742,2.6933,140.29,140.24,3.5658]
[1727903377936,2.6933,140.29,140.22,1.001]
[1727903379440,2.6933,140.29,140.24,3.5658]
[1727903379641,6.2579,140.29,140.24,3.5658]
[1727903380333,3.5648,140.28,140.23,3.566]
[1727903380528,2.6933,140.29,140.23,3.566]
[1727903380938,6.258,140.29,140.23,3.566]
[1727903381235,2.6933,140.29,140.22,4.5671]
[1727903381434,3.5659,140.24,140.22,1.001]
[1727903381645,13.86326546,140.29,140.22,1.001]
[1727903382138,3.5652,140.27,140.22,1.001]
[1727903382341,13.86326546,140.29,140.22,1.001]
[1727903382939,3.5656,140.25,140.22,1.001]
[1727903383137,13.86326546,140.29,140.22,1.001]
[1727903383340,3.5653,140.26,140.22,4.5672]
[1727903385638,3.5653,140.26,140.23,3.566]
[1727903386831,5.35,140.25,140.23,3.566]
[1727903387238,5.35,140.25,140.22,4.5672]
[1727903387735,5.35,140.25,140.22,1.001]
[1727903387939,5.35,140.25,140.24,3.5658]
[1727903388243,5.35,140.25,140.22,1.001]
[1727903388543,5.35,140.25,140.21,0.12502]
[1727903388840,1.347,140.24,140.21,0.12502]
[1727903389047,3.5663,140.22,140.21,0.12502]
[1727903389539,7.0850911,140.22,140.21,0.12502]
[1727903389742,3.5663,140.22,140.21,0.12502]
[1727903390239,3.50095638,140.22,140.15,1.12602]
[1727903390450,7.6,140.22,140.15,1.12602]
[1727903390741,3.6354302,140.21,140.15,1.12602]
[1727903390946,7.6,140.22,140.15,1.12602]
[1727903391145,11.1897733,140.22,140.15,1.12602]
[1727903392135,7.25822,140.21,140.1,1.001]
[1727903392449,3.5691,140.12,140.1,1.001]
[1727903393036,7.58,140.15,140.1,1.001]
[1727903393237,3.5687,140.13,140.1,1.001]
[1727903393633,7.58,140.15,140.1,1.001]
[1727903394238,3.5691,140.11,140.1,1.001]
[1727903394435,3.49952901,140.12,140.09,0.12502]
[1727903394648,7.58,140.11,140.04,0.12518]
[1727903394835,7.58,140.11,140.05,4.5716]
[1727903394836,3.57,140.08,140.05,4.5716]
[1727903395244,11.142709,140.11,140.05,1.001]
[1727903396054,3.5695,140.1,140.06,3.5702]
[1727903396252,7.58,140.11,140.05,1.001]
[1727903396550,3.5697,140.09,140.05,4.5714]
[1727903396748,3.49220865,140.1,140.05,4.5714]
[1727903397148,3.5703,140.07,140.05,1.001]
[1727903397349,7.58,140.07,140.03,1.12602]
[1727903397748,3.5708,140.05,140.03,1.12602]
[1727903397949,7.58,140.07,140.03,1.12602]
[1727903398250,3.5709,140.04,140.03,1.12602]
[1727903400649,1.4097,140.05,140.03,1.12602]
[1727903400955,5.71,140.06,140.03,1.12602]
[1727903401745,5.71,140.06,140.05,3.5706]
[1727903402455,1.38,140.06,140.05,3.5706]
[1727903402649,1.3088,140.13,140.03,12.20394187]
[1727903402957,5.05259593,140.15,140.03,12.20394187]
[1727903403155,1.46112,140.15,140.03,12.20394187]
[1727903403461,3.5688,140.13,140.03,12.20394187]
[1727903403654,1.46112,140.15,140.03,12.20394187]
[1727903403957,3.5684,140.14,140.03,12.20394187]
[1727903404163,1.46112,140.15,140.03,12.20394187]
[1727903404854,1.46112,140.15,140.08,3.5696]
[1727903405163,3.5685,140.14,140.08,7.58]
[1727903405356,1.46112,140.15,140.08,7.58]
[1727903405562,3.5694,140.11,140.05,7.58]
[1727903405861,1.46112,140.15,140.05,7.58]
[1727903406155,3.5687,140.13,140.05,7.58]
[1727903406552,3.5687,140.13,140.08,3.5697]
[1727903406753,1.46112,140.15,140.05,7.58]
[1727903406956,1.46112,140.15,140.1,3.5692]
[1727903407262,1.46112,140.15,140.04,3.48667884]
[1727903407461,7.58,140.14,140.03,1.12602]
[1727903407761,7.58,140.14,140.03,8.70602]
[1727903407953,3.569,140.12,140.03,12.22446731]
[1727903408154,1.3419,140.13,140.03,12.22446731]
[1727903408349,1.3419,140.13,140.03,8.70602]
[1727903408560,3.5698,140.09,140.03,8.70602]
[1727903408760,3.5698,140.09,140.05,3.5705]
[1727903409160,1.3419,140.13,140.09,3.5694]
[1727903409360,1.3419,140.13,140.03,12.24914166]
[1727903409361,1.3419,140.13,140.03,8.70602]
[1727903409754,3.5696,140.1,140.07,3.5701]
[1727903410162,5.02942,140.15,140.04,3.58132339]
[1727903410365,5.71,140.09,140.03,8.70602]
[1727903410658,0.12502,140.15,140.12,3.5688]
[1727903411566,0.12502,140.15,140.09,7.58]
[1727903411567,3.69312,140.15,140.09,7.58]
[1727903411857,0.12502,140.15,140.09,7.58]
[1727903412361,0.12502,140.15,140.14,3.5683]
[1727903412860,5.82502,140.15,140.14,3.5683]
[1727903413460,0.37052,140.15,140.14,3.5683]
[1727903420662,0.37052,140.15,140.1,0.8308]
[1727903420867,0.37052,140.15,140.12,7.58]
[1727903421056,0.37052,140.15,140.14,5.0]
[1727903421860,5.62,140.16,140.14,5.0]
[1727903422264,5.62,140.16,140.15,3.5681]
[1727903422670,11.32,140.16,140.15,3.5681]
[1727903423371,11.32,140.16,140.14,5.0]
[1727903424381,14.888,140.16,140.14,5.0]
[1727903425473,3.5681,140.15,140.14,5.0]
[1727903426873,6.9981,140.15,140.14,5.0]
[1727903427072,3.5692,140.11,140.08,11.1497]
[1727903427271,3.5692,140.11,140.08,7.58]
[1727903427476,3.43,140.15,140.04,0.4612]
[1727903427684,3.43,140.15,140.06,7.58]
[1727903428680,1.0,140.14,140.03,1.12602]
[1727903428979,7.58,140.13,140.03,1.12602]
[1727903429574,3.5709,140.04,140.03,1.12602]
[1727903429779,7.58,140.08,140.03,1.12602]
[1727903429981,1.3931,140.07,140.03,1.12602]
[1727903430483,3.5709,140.04,140.03,1.12602]
[1727903431797,3.5707,140.05,140.03,1.12602]
[1727903432070,2.37,140.05,140.03,1.12602]
[1727903432881,2.37,140.05,140.04,3.5709]
[1727903433480,2.37,140.05,140.03,1.12602]
[1727903433877,2.37,140.05,140.03,4.69702]
[1727903434184,2.37,140.05,140.03,1.12602]
[1727903435176,2.37,140.05,140.04,3.5709]
[1727903436180,6.2948,140.11,140.03,4.64250986]
[1727903436479,1.4259,140.14,140.03,4.64250986]
[1727903437890,3.5689,140.12,140.08,3.5697]
[1727903438074,1.4259,140.14,140.06,7.58]
[1727903438275,4.9943,140.14,140.1,3.5692]
[1727903439588,3.5687,140.13,140.1,3.5692]
[1727903440284,3.5689,140.12,140.08,3.5698]
[1727903440489,1.4259,140.14,140.06,7.58]
[1727903440891,3.569,140.12,140.06,7.58]
[1727903441075,1.4259,140.14,140.06,7.58]
[1727903441384,3.5688,140.13,140.08,3.5698]
[1727903441584,3.5688,140.13,140.06,7.58]
[1727903441985,3.5688,140.13,140.09,3.5695]
[1727903442183,3.5689,140.12,140.09,3.5695]
[1727903443584,3.5692,140.11,140.08,3.5697]
[1727903444288,5.38,140.12,140.06,7.58]
[1727903444790,5.38,140.12,140.08,3.5698]
[1727903444984,5.38,140.12,140.06,7.58]
[1727903445787,5.38,140.12,140.11,3.5691]
[1727903446086,3.2139,140.12,140.11,11.1491]
[1727903447176,3.0885,140.12,140.11,14.80578254]
[1727903447382,3.0885,140.12,140.11,11.1491]
[1727903450489,3.0885,140.12,140.11,14.75870881]
[1727903450990,2.6214,140.12,140.11,14.75870881]
[1727903454296,6.0414,140.12,140.11,14.75870881]
[1727903456086,0.12502,140.15,140.11,11.18960881]
[1727903456291,0.12502,140.15,140.14,3.5683]
[1727903458391,2e-05,140.15,140.14,3.5683]
[1727903458599,2e-05,140.16,140.15,3.5681]
[1727903458891,2e-05,140.16,140.15,11.1281]
[1727903460490,2e-05,140.16,140.15,3.5681]
[1727903460891,2e-05,140.16,140.15,11.1281]
[1727903461799,5.57002,140.16,140.15,11.1281]
[1727903464715,5.57002,140.16,140.15,3.5681]
[1727903465001,5.57002,140.16,140.14,7.56]
[1727903465403,5.57002,140.16,140.15,7.56]
[1727903465797,5.57002,140.16,140.15,11.1281]
[1727903466992,5.57002,140.16,140.15,7.56]
[1727903467302,5.57002,140.16,140.09,0.12502]
[1727903467510,3.5685,140.14,140.1,7.56]
[1727903468197,3.5685,140.14,140.09,3.69452]
[1727903468198,8.39562,140.16,140.09,0.12502]
[1727903468399,8.39562,140.16,140.03,4.64250986]
[1727903468594,0.12502,140.15,140.04,7.56]
[1727903469402,3.5688,140.13,140.07,3.5701]
[1727903469594,0.12502,140.15,140.08,7.56]
[1727903469804,0.12502,140.15,140.12,3.5688]
[1727903470002,0.12502,140.15,140.11,3.49203145]
[1727903470202,0.12502,140.15,140.08,7.56]
[1727903471401,0.12502,140.15,140.08,14.686]
[1727903472108,0.12502,140.15,140.14,3.5683]
[1727903472308,0.12502,140.15,140.14,14.62728708]
[1727903472501,0.12502,140.15,140.14,7.56]
[1727903473307,0.12502,140.15,140.14,11.1283]
[1727903478102,0.12502,140.15,140.14,7.56]
[1727903479215,0.12502,140.15,140.1,77.06]
[1727903479216,0.12502,140.15,140.11,7.56]
[1727903479406,0.12502,140.15,140.11,11.20016426]
[1727903479705,0.12502,140.15,140.14,3.5683]
[1727903480210,0.12502,140.15,140.12,3.5688]
[1727903480411,0.12502,140.15,140.1,77.06]
[1727903480615,0.12502,140.15,140.1,84.62]
[1727903480911,0.12502,140.15,140.11,3.569]
[1727903481106,0.12502,140.15,140.1,84.62]
[1727903481304,0.12502,140.15,140.09,7.56]
[1727903481507,3.67035559,140.15,140.09,5.3952]
[1727903481708,0.12502,140.15,140.06,7.56]
[1727903481915,3.58671805,140.14,140.06,3.5703]
[1727903482109,1.4279,140.13,140.05,7.56]
[1727903482303,1.3198,140.12,140.05,7.56]
[1727903482507,3.5694,140.11,140.07,3.5699]
[1727903482703,1.3198,140.12,140.05,7.56]
[1727903483012,1.3198,140.12,140.07,3.5701]
[1727903483013,3.5693,140.11,140.07,3.5701]
[1727903484913,4.7893,140.11,140.07,3.5701]
[1727903485105,1.22,140.11,140.05,7.56]
[1727903486415,3.5695,140.1,140.06,3.5702]
[1727903486814,1.3351,140.1,140.03,1.12602]
[1727903487410,3.57,140.08,140.04,3.5708]
[1727903487815,3.57,140.08,140.03,1.12602]
[1727903488016,1.3351,140.1,140.03,1.12602]
[1727903488221,3.5698,140.09,140.05,3.5706]
[1727903488411,1.3351,140.1,140.05,3.5706]
[1727903488712,3.57,140.08,140.05,3.5706]
[1727903489114,3.57,140.08,140.06,5.0]
[1727903489414,3.57,140.08,140.06,2.8339]
[1727903490217,8.67,140.08,140.06,2.8339]
[1727903490516,5.1,140.08,140.06,2.8339]
[1727903491315,5.1,140.08,140.07,3.5701]
[1727903492522,0.6433,140.08,140.07,3.5701]
[1727903496320,1.22,140.11,140.06,91.759]
[1727903496516,1.22,140.11,140.1,3.5694]
[1727903496721,1.22,140.11,140.1,11.1094]
[1727903498718,1.22,140.11,140.1,3.5694]
[1727903498923,1.22,140.11,140.1,11.1094]
[1727903501629,0.12502,140.15,140.1,7.54]
[1727903501811,0.12502,140.15,140.14,3.5683]
[1727903502009,0.12502,140.15,140.14,14.7166802]
[1727903502810,2e-05,140.15,140.14,14.7166802]
[1727903503228,0.18552,140.16,140.14,11.1483802]
[1727903503530,2e-05,140.16,140.15,10.7071]
[1727903504819,0.12502,140.21,140.2,3.5668]
[1727903505025,0.12502,140.21,140.2,88.1668]
[1727903508821,0.12502,140.21,140.2,80.6268]
[1727903509028,0.12502,140.21,140.2,88.1668]
[1727903510327,0.12502,140.21,140.2,80.6268]
[1727903510528,0.12502,140.21,140.2,88.1668]
[1727903510926,0.12502,140.21,140.2,77.06]
[1727903511138,0.12502,140.21,140.14,3.6083802]
[1727903511431,0.12502,140.21,140.15,7.54]
[1727903511629,3.69162,140.21,140.16,3.64567068]
[1727903511823,0.12502,140.21,140.15,7.54]
[1727903512534,3.567,140.2,140.15,3.55909758]
[1727903512735,0.12502,140.21,140.09,0.12502]
[1727903513021,0.12502,140.21,140.1,7.54]
[1727903513721,3.5668,140.2,140.15,3.5681]
[1727903513922,3.5668,140.2,140.15,11.1081]
[1727903514323,0.12502,140.21,140.15,7.54]
[1727903515029,0.12502,140.21,140.18,3.5672]
[1727903515732,0.12502,140.21,140.15,7.54]
[1727903516528,0.12502,140.21,140.19,3.5669]
[1727903516823,0.12502,140.21,140.19,11.0869]
[1727903517029,0.12502,140.21,140.2,3.5668]
[1727903520427,0.12502,140.21,140.19,7.52]
[1727903520733,0.12502,140.21,140.08,84.1597]
[1727903520925,3.5676,140.17,140.1,7.52]
[1727903521128,3.5676,140.17,140.12,3.5687]
[1727903521328,2.8697,140.16,140.13,7.52]
[1727903522931,2.8697,140.16,140.08,77.02]
[1727903523239,6.4377,140.16,140.11,3.5691]
[1727903524137,3.5681,140.15,140.1,11.0893]
[1727903524541,3.5681,140.15,140.08,77.02]
[1727903524735,3.5681,140.15,140.09,7.64502]
[1727903524936,3.5681,140.15,140.09,11.21452]
[1727903525639,6.4376,140.16,140.11,3.5691]
[1727903526139,6.4376,140.16,140.09,7.64502]
[1727903526342,3.5684,140.14,140.09,7.64502]
[1727903526943,3.5684,140.14,140.09,3.69452]
[1727903527144,3.5693,140.11,140.06,7.52]
[1727903527437,0.12502,140.15,140.05,11.0905]
[1727903527731,3.5687,140.13,140.05,7.52]
[1727903527937,0.12502,140.15,140.08,3.5697]
[1727903528136,0.12502,140.15,140.05,7.52]
[1727903528534,0.12502,140.15,140.11,3.5691]
[1727903528837,0.12502,140.15,140.09,7.52]
[1727903529028,0.12502,140.15,140.12,3.5687]
[1727903529337,0.12502,140.15,140.09,7.52]
[1727903530735,4.76502,140.15,140.09,7.52]
[1727903530930,8.33322,140.15,140.09,7.52]
[1727903531435,4.76502,140.15,140.09,7.52]
[1727903532939,4.76502,140.15,140.14,3.5683]
[1727903536642,4.76502,140.15,140.13,7.52]
[1727903536842,4.76502,140.15,140.13,11.0885]
[1727903539238,4.76502,140.15,140.13,7.52]
[1727903539459,4.76502,140.15,140.14,3.5683]
[1727903543152,4.76502,140.15,140.13,11.0885]
[1727903544354,8.33312,140.15,140.09,77.06]
[1727903544559,4.76502,140.15,140.1,7.5]
[1727903544945,4.76502,140.15,140.11,3.5691]
[1727903545148,4.76502,140.15,140.1,7.5]
[1727903545447,8.33312,140.15,140.1,11.0692]
[1727903546062,3.5687,140.13,140.04,7.139]
[1727903546263,4.76502,140.15,140.05,7.5]
[1727903546466,2.7291,140.12,140.05,7.5]
[1727903546875,6.2981,140.12,140.07,3.57]
[1727903547361,2.7291,140.12,140.05,7.5]
[1727903548263,2.7291,140.12,140.03,4.69984586]
[1727903548264,1.3812,140.11,140.06,7.5]
[1727903549867,1.3812,140.11,140.07,3.57]
[1727903551570,1.3812,140.11,140.06,7.5]
[1727903551769,1.3812,140.11,140.08,3.5699]
[1727903551970,7.0812,140.11,140.08,3.5699]
[1727903553466,7.0812,140.11,140.06,7.5]
[1727903554267,7.0812,140.11,140.08,3.5697]
[1727903554461,5.7,140.11,140.06,7.5]
[1727903554666,5.7,140.11,140.07,7.139]
[1727903554867,5.7,140.11,140.1,3.5694]
[1727903555175,5.7,140.11,140.1,11.0894]
[1727903562775,5.7,140.11,140.03,4.69984586]
[1727903562776,5.7,140.11,140.08,7.5]
[1727903563874,5.7,140.11,140.08,11.0698]
[1727903564181,5.7,140.11,140.08,7.5]
[1727903564982,8.4758,140.11,140.08,7.5]
[1727903565577,8.4758,140.11,140.09,3.5695]
[1727903566176,5.7,140.11,140.1,3.5694]
[1727903566377,5.7,140.11,140.08,7.5]
[1727903566773,5.7,140.11,140.08,11.0697]
[1727903569276,5.7,140.11,140.08,7.5]
[1727903570077,5.7,140.11,140.08,11.0699]
[1727903571978,5.7,140.11,140.09,3.5696]
[1727903572593,5.7,140.11,140.1,3.5694]
[1727903576798,5.7,140.11,140.09,3.5695]
[1727903578786,3.5694,140.1,140.08,7.5]
[1727903579688,8.4402,140.11,140.08,7.5]
[1727903579889,12.0094,140.11,140.08,7.5]
[1727903580792,12.0094,140.11,140.07,3.5701]
[1727903581086,8.4402,140.11,140.03,1.12602]
[1727903581596,3.5707,140.05,140.03,1.12602]
[1727903582095,6.23401783,140.11,140.03,4.69712]
[1727903582096,3.5704,140.07,140.03,4.69712]
[1727903582293,1.3949,140.06,140.03,1.12602]
[1727903582483,2.7634,140.05,139.97,0.12502]
[1727903582885,7.5,140.04,139.97,0.12502]
[1727903583081,7.5,140.04,139.95,1.001]
[1727903583082,3.5726,139.98,139.95,1.001]
[1727903583293,1.4096,139.97,139.95,1.001]
[1727903583490,5.71,139.96,139.95,1.001]
[1727903584997,5.71,139.96,139.93,1.001]
[1727903585394,5.71,139.96,139.91,0.12502]
[1727903585899,5.71,139.96,139.88,1.001]
[1727903585900,7.5,139.95,139.88,1.001]
[1727903586190,7.5,139.95,139.85,1.12602]
[1727903586191,10.99788493,139.95,139.85,1.12602]
[1727903586393,0.12502,139.91,139.83,1.001]
[1727903586596,7.5,139.9,139.83,1.001]
[1727903586792,3.5752,139.88,139.83,4.5771]
[1727903587292,0.12502,139.91,139.84,7.5]
[1727903588101,0.12502,139.91,139.9,3.5745]
[1727903589797,0.12502,139.91,139.9,7.06730161]
[1727903592813,5.71,139.96,139.95,3.5732]
[1727903595099,5.71,139.96,139.93,7.5]
[1727903595710,5.71,139.96,139.94,3.5733]
[1727903596604,5.71,139.96,139.95,3.5732]
[1727903598011,5.71,139.96,139.91,1.133]
[1727903598202,5.71,139.96,139.92,7.5]
[1727903599414,5.71,139.96,139.95,3.5732]
[1727903600310,5.71,139.96,139.9,3.49280161]
[1727903600607,13.87474257,139.95,139.85,4.94660306]
[1727903600808,10.2927,139.95,139.85,0.12502]
[1727903601008,7.5,139.94,139.85,3.68670194]
[1727903601206,7.5,139.94,139.85,0.12502]
[1727903601400,7.5,139.94,139.86,3.5753]
[1727903601401,3.5737,139.93,139.86,3.5753]
[1727903602215,3.5744,139.91,139.85,7.28812063]
[1727903602415,3.5744,139.91,139.85,3.70072]
[1727903602621,7.5,139.94,139.85,3.70072]
[1727903602922,7.5,139.93,139.87,3.5752]
[1727903603216,11.0741,139.92,139.85,0.12502]
[1727903603414,7.5,139.92,139.87,3.5751]
[1727903603721,7.5,139.92,139.85,0.12502]
[1727903604024,7.5,139.92,139.87,3.5752]
[1727903604421,3.5744,139.91,139.87,3.5752]
[1727903604717,7.5,139.92,139.88,3.5748]
[1727903604919,7.5,139.92,139.85,0.12502]
[1727903605119,2.7927,139.95,139.87,3.575]
[1727903605317,7.48,139.94,139.87,3.575]
[1727903605625,3.5745,139.9,139.87,3.575]
[1727903605819,11.0545,139.9,139.86,3.5754]
[1727903606015,7.48,139.9,139.86,3.5754]
[1727903606214,11.0545,139.9,139.86,3.5754]
[1727903607218,7.48,139.9,139.87,3.5751]
[1727903608116,3.5743,139.91,139.87,3.5751]
[1727903608324,3.5747,139.89,139.85,3.70062]
[1727903608821,7.48,139.89,139.85,0.12502]
[1727903609417,11.0549,139.89,139.85,3.70062]
[1727903610713,11.0549,139.89,139.85,0.12502]
[1727903610714,7.48,139.89,139.85,0.12502]
[1727903610913,3.575,139.88,139.85,0.12502]
[1727903611220,7.48,139.89,139.83,1.001]
[1727903611421,2.6554,139.87,139.83,1.001]
[1727903611611,3.5758,139.85,139.83,1.001]
[1727903611919,7.48,139.86,139.83,1.001]
[1727903612421,7.48,139.86,139.83,4.5771]
[1727903612924,2.6554,139.87,139.85,3.5756]
[1727903613313,1.3482,139.87,139.83,1.001]
[1727903613516,0.12502,139.91,139.83,1.001]
[1727903614020,0.12502,139.91,139.89,3.5747]
[1727903614528,0.12502,139.91,139.83,1.001]
[1727903615426,3.59380924,139.9,139.83,1.001]
[1727903615721,1.356,139.89,139.83,1.001]
[1727903616112,1.356,139.89,139.85,3.5755]
[1727903616525,7.48,139.88,139.85,3.5755]
[1727903617114,1.356,139.89,139.88,3.575]
[1727903618337,0.12502,139.91,139.9,3.5745]
[1727903618628,0.12502,139.91,139.84,7.48]
[1727903619015,0.12502,139.91,139.88,3.5748]
[1727903619219,0.12502,139.91,139.84,7.48]
[1727903619419,0.12502,139.91,139.89,3.5746]
[1727903619716,0.12502,139.91,139.84,7.48]
[1727903619920,0.12502,139.91,139.9,3.5745]
[1727903620927,0.12502,139.97,139.88,7.48]
[1727903621128,0.12502,139.97,139.88,14.63]
[1727903621326,0.12502,139.97,139.88,7.48]
[1727903622134,0.12502,139.97,139.88,8.6166]
[1727903623337,0.12502,139.97,139.96,3.5729]
[1727903625327,0.12502,139.97,139.88,1.1366]
[1727903625630,0.12502,139.97,139.89,7.48]
[1727903627432,5.01,139.96,139.89,7.48]
[1727903627634,5.01,139.96,139.88,1.1366]
[1727903627833,5.01,139.96,139.89,7.48]
[1727903628632,5.01,139.96,139.85,0.12502]
[1727903628633,1.4234,139.95,139.88,7.48]
[1727903628831,4.1357,139.95,139.88,3.5749]
[1727903629034,4.1357,139.95,139.86,11.02610153]
[1727903629536,4.1357,139.95,139.89,3.5746]
[1727903630234,7.709,139.95,139.9,3.5743]
[1727903630628,3.5735,139.94,139.9,3.5743]
[1727903631230,3.5737,139.93,139.89,3.5746]
[1727903631426,4.1357,139.95,139.86,7.48]
[1727903631741,3.5738,139.93,139.88,3.5748]
[1727903632035,4.1357,139.95,139.86,3.51336245]
[1727903632228,4.1357,139.95,139.89,3.5745]
[1727903632434,4.1357,139.95,139.85,7.60502]
[1727903632629,2.7678,139.95,139.85,7.60502]
[1727903632936,1.4234,139.95,139.94,3.5734]
[1727903633133,5.01,139.96,139.91,11.10990255]
[1727903633334,5.01,139.96,139.95,3.5732]
[1727903634337,5.01,139.96,139.93,3.5735]
[1727903634643,5.01,139.96,139.9,7.46]
[1727903634840,5.01,139.96,139.94,3.5734]
[1727903636333,5.01,139.96,139.9,7.46]
[1727903636643,5.01,139.96,139.95,3.5732]
[1727903639437,0.12502,139.97,139.94,7.46]
[1727903639640,0.12502,139.97,139.96,3.5729]
[1727903639840,0.12502,140.03,139.96,3.58209581]
[1727903640043,0.12502,140.03,139.94,7.46]
[1727903640242,3.69632,140.03,139.97,3.5725]
[1727903640547,0.12502,140.03,139.91,2.87622]